bitfinex/quotes_BTCUSD_20241117
["timestamp","ask_amount","ask_price","bid_price","bid_amount"]
[1731830492951,0.11043,90555.0,90554.0,0.0008561]
[1731830493732,0.0753,90557.0,90554.0,0.0008561]
[1731830493829,0.185727,90557.0,90555.0,0.0008561]
[1731830494051,0.0753,90557.0,90548.0,0.220877]
[1731830494275,0.110432,90554.0,90546.0,0.004415]
[1731830494545,0.185732,90553.0,90548.0,0.110438]
[1731830494765,0.0753,90553.0,90548.0,0.110438]
[1731830495415,0.0753,90553.0,90544.0,0.14508429]
[1731830495636,0.0753,90553.0,90548.0,0.110437]
[1731830496335,0.0753,90553.0,90544.0,0.14508429]
[1731830496336,0.110438,90549.0,90544.0,0.04508429]
[1731830496571,0.0753,90546.0,90544.0,0.04508429]
[1731830496805,0.0492,90545.0,90543.0,0.1]
[1731830497025,0.110443,90544.0,90543.0,0.04503047]
[1731830497248,0.0492,90545.0,90543.0,0.04503047]
[1731830497477,0.0492,90545.0,90540.0,0.1]
[1731830497478,0.159642,90545.0,90540.0,0.1]
[1731830497691,0.151642,90545.0,90540.0,0.1]
[1731830498124,0.151642,90545.0,90540.0,0.210448]
[1731830498349,0.151642,90545.0,90540.0,0.1]
[1731830499261,0.262084,90545.0,90536.0,0.110452]
[1731830499479,0.262084,90545.0,90538.0,0.1]
[1731830499480,0.110444,90544.0,90538.0,0.1]
[1731830499718,0.0412,90545.0,90539.0,0.331347]
[1731830499985,0.0412,90545.0,90540.0,0.220896]
[1731830500211,0.0753,90546.0,90545.0,0.110442]
[1731830500438,0.0753,90554.0,90544.0,0.08417806]
[1731830500666,0.16576417,90551.0,90550.0,0.110436]
[1731830500888,0.16576417,90551.0,90534.0,0.09880433]
[1731830500889,0.0753,90543.0,90536.0,0.1]
[1731830501103,0.0753,90543.0,90533.0,0.0450017]
[1731830501356,0.11045,90538.0,90533.0,0.0450017]
[1731830502441,0.23495,90538.0,90537.0,0.0008557]
[1731830503302,0.1245,90538.0,90537.0,0.0008557]
[1731830503522,0.23495,90538.0,90537.0,0.0008557]
[1731830509256,0.1245,90538.0,90537.0,0.0008557]
[1731830510611,0.0789,90545.0,90540.0,0.110447]
[1731830510821,0.0789,90545.0,90544.0,0.110443]
[1731830511256,0.0789,90545.0,90542.0,0.110445]
[1731830511714,0.0789,90552.0,90551.0,0.110434]
[1731830512615,0.0709,90552.0,90551.0,0.110434]
[1731830513088,0.5464,90561.0,90544.0,0.220887]
[1731830513311,0.5464,90561.0,90542.0,0.1]
[1731830513312,0.0489122,90566.0,90549.0,0.005]
[1731830513536,0.1593292,90566.0,90561.0,0.110422]
[1731830513754,0.0489122,90566.0,90561.0,0.110422]
[1731830514232,0.0017122,90566.0,90561.0,0.110422]
[1731830514453,0.00031976,90562.0,90561.0,0.11263016]
[1731830514669,0.00031976,90562.0,90561.0,0.22169271]
[1731830515101,0.00031976,90562.0,90561.0,0.21948455]
[1731830516233,0.00031976,90562.0,90561.0,0.26462853]
[1731830517564,0.00031976,90562.0,90561.0,0.36962853]
[1731830521931,0.00031976,90562.0,90561.0,0.40760927]
[1731830522824,0.00031976,90562.0,90561.0,0.44558538]
[1731830525650,0.00031976,90562.0,90561.0,0.36962853]
[1731830526768,1.055e-05,90562.0,90561.0,0.36962853]
[1731830527006,0.16576417,90573.0,90561.0,0.36962853]
[1731830527007,0.15948692,90573.0,90572.0,0.110409]
[1731830527713,0.0789,90580.0,90568.0,0.220826]
[1731830527936,0.0789,90580.0,90579.0,0.1104]
[1731830528161,0.0789,90578.0,90560.0,0.220845]
[1731830528385,0.0789,90578.0,90571.0,0.11041]
[1731830528601,0.189302,90578.0,90572.0,0.110408]
[1731830528842,0.0789,90578.0,90570.0,0.110411]
[1731830529106,0.110405,90576.0,90570.0,0.110411]
[1731830529310,0.110406,90575.0,90570.0,0.110411]
[1731830529988,0.0017122,90573.0,90570.0,0.110411]
[1731830530221,0.0784,90569.0,90561.0,0.0008561]
[1731830530731,0.110419,90564.0,90561.0,0.0008561]
[1731830530955,0.11042,90564.0,90561.0,0.0008561]
[1731830531206,0.188818,90565.0,90561.0,0.0008561]
[1731830531457,0.0784,90565.0,90561.0,0.0008561]
[1731830531920,0.110419,90564.0,90561.0,0.0008561]
[1731830532634,0.0784,90565.0,90561.0,0.0008561]
[1731830534782,0.110421,90562.0,90561.0,0.0008561]
[1731830535003,0.238121,90562.0,90561.0,0.0008561]
[1731830536642,0.34718355,90562.0,90561.0,0.0008561]
[1731830537585,0.110442,90545.0,90538.0,0.11045]
[1731830537835,0.188844,90544.0,90543.0,0.16576417]
[1731830538054,0.110445,90543.0,90532.0,0.220916]
[1731830538318,0.110445,90543.0,90536.0,0.110453]
[1731830539070,0.188843,90544.0,90537.0,0.11045]
[1731830539303,0.110445,90543.0,90537.0,0.11045]
[1731830539981,0.0784,90544.0,90538.0,0.1]
[1731830540451,0.110444,90543.0,90538.0,0.1]
[1731830540684,0.0784,90544.0,90538.0,0.21045]
[1731830541372,0.188844,90544.0,90538.0,0.21045]
[1731830541588,0.0784,90544.0,90538.0,0.21045]
[1731830541813,0.188844,90544.0,90537.0,0.110451]
[1731830542041,0.180844,90544.0,90538.0,0.1]
[1731830542273,0.0704,90544.0,90538.0,0.1]
[1731830542491,0.0704,90544.0,90538.0,0.21045]
[1731830542983,0.110444,90543.0,90534.0,0.0008563]
[1731830543219,0.110453,90536.0,90534.0,0.0008563]
[1731830543460,0.110454,90535.0,90534.0,0.0008563]
[1731830548528,0.193754,90535.0,90534.0,0.0008563]
[1731830548974,0.240054,90535.0,90534.0,0.0008563]
[1731830554674,0.110458,90532.0,90524.0,0.17328291]
[1731830554885,0.110458,90532.0,90526.0,0.110465]
[1731830556079,0.0833,90535.0,90534.0,0.110455]
[1731830556315,0.0807,90542.0,90532.0,0.00220888]
[1731830556546,0.0017124,90544.0,90542.0,0.110445]
[1731830556766,0.0017124,90544.0,90540.0,0.12625417]
[1731830556993,0.0807,90548.0,90540.0,0.23531672]
[1731830557216,0.0807,90548.0,90547.0,0.110439]
[1731830557694,0.11044,90547.0,90540.0,0.23531672]
[1731830557917,0.11044,90547.0,90542.0,0.110445]
[1731830558134,0.0807,90548.0,90543.0,0.110444]
[1731830558359,0.0807,90548.0,90541.0,0.110446]
[1731830558807,0.0807,90548.0,90534.0,0.220911]
[1731830559033,0.0807,90548.0,90535.0,0.20906255]
[1731830559250,0.110441,90546.0,90535.0,0.20906255]
[1731830559467,0.220879,90547.0,90535.0,0.20906255]
[1731830559684,0.110442,90545.0,90538.0,0.11045]
[1731830559943,0.110442,90545.0,90536.0,0.220906]
[1731830559944,0.110442,90545.0,90540.0,0.110448]
[1731830560206,0.110446,90542.0,90536.0,0.110452]
[1731830560408,0.220884,90545.0,90535.0,0.1]
[1731830560625,0.0475,90544.0,90535.0,0.210454]
[1731830560846,0.110448,90540.0,90535.0,0.210454]
[1731830561310,0.220889,90543.0,90535.0,0.1]
[1731830561573,0.11045,90539.0,90534.0,0.1]
[1731830561796,0.11045,90539.0,90535.0,0.1]
[1731830562711,0.220889,90543.0,90535.0,0.1]
[1731830562712,0.110453,90536.0,90535.0,0.1]
[1731830562940,0.110453,90536.0,90525.0,0.220932]
[1731830562941,0.0811,90535.0,90525.0,0.110466]
[1731830563166,0.110459,90532.0,90520.0,0.220943]
[1731830563385,0.110459,90532.0,90527.0,0.110464]
[1731830564141,0.11046,90531.0,90525.0,0.110466]
[1731830564369,0.11046,90531.0,90522.0,0.22094]
[1731830564370,0.11046,90531.0,90526.0,0.110465]
[1731830564591,0.110462,90529.0,90523.0,0.110468]
[1731830564801,0.110461,90529.0,90523.0,0.110468]
[1731830565252,0.110461,90529.0,90521.0,0.220943]
[1731830565509,0.110461,90529.0,90524.0,0.110467]
[1731830566176,0.110465,90527.0,90520.0,0.04396562]
[1731830566396,0.110465,90526.0,90521.0,0.110471]
[1731830567301,0.220924,90529.0,90521.0,0.110471]
[1731830567794,0.110464,90527.0,90521.0,0.110471]
[1731830568235,0.110464,90527.0,90522.0,0.11047]
[1731830568453,0.0475,90530.0,90522.0,0.11047]
[1731830568680,0.110463,90528.0,90524.0,0.0008562]
[1731830569390,0.110466,90525.0,90524.0,0.0008562]
[1731830569620,0.191566,90525.0,90524.0,0.0008562]
[1731830572044,0.183566,90525.0,90524.0,0.0008562]
[1731830573684,0.19589901,90525.0,90524.0,0.0008562]
[1731830573904,0.24419901,90525.0,90524.0,0.0008562]
[1731830574981,0.35326156,90525.0,90524.0,0.0008562]
[1731830575236,0.37979172,90525.0,90524.0,0.0008562]
[1731830575474,0.36326054,90525.0,90524.0,0.0008562]
[1731830575717,0.37978395,90525.0,90524.0,0.0008562]
[1731830577134,0.40043279,90525.0,90524.0,0.0008562]
[1731830578064,0.37478395,90525.0,90524.0,0.0008562]
[1731830578291,0.2587214,90525.0,90524.0,0.0008562]
[1731830578751,0.242195,90525.0,90524.0,0.0008562]
[1731830582366,0.244195,90525.0,90524.0,0.0008562]
[1731830583036,0.35325755,90525.0,90524.0,0.0008562]
[1731830583770,0.35324051,90525.0,90524.0,0.0008562]
[1731830584243,0.3532404,90525.0,90524.0,0.0008562]
[1731830586948,0.3432404,90525.0,90524.0,0.0008562]
[1731830587177,0.34523838,90525.0,90524.0,0.0008562]
[1731830588726,0.34523838,90525.0,90524.0,0.00107499]
[1731830590785,0.34523838,90525.0,90524.0,0.52999699]
[1731830591017,0.37323838,90525.0,90524.0,0.52999699]
[1731830591228,0.37823838,90525.0,90524.0,0.52999699]
[1731830592599,0.96907081,90525.0,90524.0,0.52999699]
[1731830592786,1.06907081,90525.0,90524.0,0.52999699]
[1731830593035,1.07078361,90525.0,90524.0,0.52999699]
[1731830593280,1.09143199,90525.0,90524.0,0.5051364]
[1731830593519,1.09144465,90525.0,90524.0,0.5051364]
[1731830595249,1.07079627,90525.0,90524.0,0.5051364]
[1731830595707,1.16981021,90525.0,90524.0,0.5051364]
[1731830595908,1.16981021,90525.0,90524.0,0.4270364]
[1731830596177,1.07079627,90525.0,90524.0,0.4270364]
[1731830596382,1.16982114,90525.0,90524.0,0.4270364]
[1731830596600,1.15949865,90525.0,90524.0,0.4270364]
[1731830596804,1.15949865,90525.0,90524.0,0.39684493]
[1731830596805,1.07079337,90525.0,90524.0,0.39684493]
[1731830597682,1.16978039,90525.0,90524.0,0.39684493]
[1731830598318,1.07079337,90525.0,90524.0,0.39684493]
[1731830599211,1.16974958,90525.0,90524.0,0.39684493]
[1731830599670,1.07079337,90525.0,90524.0,0.39684493]
[1731830599939,1.06047378,90525.0,90524.0,0.39684493]
[1731830600127,1.07079254,90525.0,90524.0,0.39684493]
[1731830601323,1.07079414,90525.0,90524.0,0.39684493]
[1731830601977,1.06279414,90525.0,90524.0,0.39684493]
[1731830604740,1.06279414,90525.0,90524.0,0.39770103]
[1731830606384,1.05247378,90525.0,90524.0,0.39770103]
[1731830606624,1.06279502,90525.0,90524.0,0.39770103]
[1731830609590,1.06279579,90525.0,90524.0,0.39770103]
[1731830610683,1.06279579,90525.0,90524.0,0.37283987]
[1731830612065,1.16174868,90525.0,90524.0,0.37283987]
[1731830612954,1.06279579,90525.0,90524.0,0.37283987]
[1731830613381,1.15142667,90525.0,90524.0,0.37283987]
[1731830613605,1.06279974,90525.0,90524.0,0.37283987]
[1731830614921,1.24606702,90525.0,90524.0,0.37283987]
[1731830615628,1.14707297,90525.0,90524.0,0.37283987]
[1731830616957,1.06060697,90525.0,90524.0,0.37283987]
[1731830617169,1.17107297,90525.0,90524.0,0.37283987]
[1731830619557,1.17108784,90525.0,90524.0,0.37283987]
[1731830621357,1.17108784,90525.0,90524.0,0.17607453]
[1731830625619,1.31975487,90525.0,90524.0,0.17607453]
[1731830626260,1.31975487,90525.0,90524.0,0.15121338]
[1731830626261,1.17108784,90525.0,90524.0,0.15121338]
[1731830627355,1.28015039,90525.0,90524.0,0.10702538]
[1731830627363,0.247469,90523.0,90522.0,5.72899991]
[1731830627593,0.247469,90523.0,90522.0,5.59178835]
[1731830627594,1.13997321,90523.0,90522.0,5.59178835]
[1731830627812,0.97640426,90523.0,90522.0,5.59178835]
[1731830628489,0.97440426,90523.0,90522.0,5.48131835]
[1731830628732,0.97840426,90523.0,90522.0,5.48131835]
[1731830628967,1.01854751,90523.0,90522.0,5.48131835]
[1731830629444,1.01862942,90523.0,90522.0,5.37084835]
[1731830630342,1.01662942,90523.0,90522.0,5.37084835]
[1731830630560,1.01662942,90523.0,90522.0,5.26037835]
[1731830631252,1.02062942,90523.0,90522.0,5.26037835]
[1731830631469,1.01862942,90523.0,90522.0,5.19409635]
[1731830631670,1.01862942,90523.0,90522.0,5.14990835]
[1731830631915,1.01062942,90523.0,90522.0,5.14990835]
[1731830632134,1.00862942,90523.0,90522.0,5.14990835]
[1731830632400,1.01262942,90523.0,90522.0,5.12781435]
[1731830632634,1.55902942,90523.0,90522.0,5.03943835]
[1731830633133,1.55702942,90523.0,90522.0,5.03943835]
[1731830633367,1.55702942,90523.0,90522.0,4.99525035]
[1731830633599,1.55902942,90523.0,90522.0,4.92896835]
[1731830634053,1.55908609,90523.0,90522.0,4.92896835]
[1731830634522,1.55708609,90523.0,90522.0,4.92896835]
[1731830636648,1.52257508,90523.0,90522.0,4.92896835]
[1731830638298,1.52257508,90523.0,90522.0,4.63056305]
[1731830638533,1.52257508,90523.0,90522.0,4.63141915]
[1731830638785,1.52428728,90523.0,90522.0,4.63141915]
[1731830639691,0.85108728,90523.0,90522.0,4.63141915]
[1731830640597,0.7246708,90523.0,90522.0,4.63141915]
[1731830641053,0.92313769,90523.0,90522.0,4.63141915]
[1731830641334,0.91279686,90523.0,90522.0,4.63141915]
[1731830641546,0.92312998,90523.0,90522.0,4.63141915]
[1731830641776,0.92312996,90523.0,90522.0,4.63141915]
[1731830642412,0.72466307,90523.0,90522.0,4.63141915]
[1731830643993,0.97276078,90523.0,90522.0,4.63141915]
[1731830644202,0.77326307,90523.0,90522.0,4.63141915]
[1731830644461,0.77326344,90523.0,90522.0,4.63141915]
[1731830644951,0.77326344,90523.0,90522.0,4.39099109]
[1731830645185,1.02136199,90523.0,90522.0,4.39099109]
[1731830645394,1.0378966,90523.0,90522.0,4.39099109]
[1731830645618,0.79004287,90523.0,90522.0,4.39099109]
[1731830646792,0.79004476,90523.0,90522.0,4.39099109]
[1731830647025,0.78204476,90523.0,90522.0,4.39099109]
[1731830648919,0.86631681,90523.0,90522.0,4.39099109]
[1731830650917,0.78204476,90523.0,90522.0,4.39099109]
[1731830651137,0.86631681,90523.0,90522.0,4.39099109]
[1731830653195,0.86631681,90523.0,90522.0,4.39129065]
[1731830653621,1.11442278,90523.0,90522.0,4.39129065]
[1731830654049,1.11442346,90523.0,90522.0,4.39129065]
[1731830654971,0.86631681,90523.0,90522.0,4.39129065]
[1731830655639,0.86631681,90523.0,90522.0,4.36642857]
[1731830658634,0.8497822,90523.0,90522.0,4.36642857]
[1731830660245,0.76551015,90523.0,90522.0,4.36642857]
[1731830660975,0.76554481,90523.0,90522.0,4.36642857]
[1731830661915,0.75754481,90523.0,90522.0,4.36642857]
[1731830662148,0.75054481,90523.0,90522.0,4.36642857]
[1731830662368,0.83481686,90523.0,90522.0,4.36642857]
[1731830664185,0.8578288,90523.0,90522.0,4.36642857]
[1731830665554,0.49146121,90523.0,90522.0,4.36642857]
[1731830665786,0.85786145,90523.0,90522.0,4.36642857]
[1731830667653,0.89234384,90523.0,90522.0,4.36642857]
[1731830668152,0.97254384,90523.0,90522.0,4.36642857]
[1731830669670,0.93606145,90523.0,90522.0,3.8138991]
[1731830670126,0.93806145,90523.0,90522.0,3.7034291]
[1731830670575,0.93806145,90523.0,90522.0,3.6813351]
[1731830671043,0.97256253,90523.0,90522.0,3.6592411]
[1731830671291,0.97256941,90523.0,90522.0,3.6592411]
[1731830671973,0.97456941,90523.0,90522.0,3.50576591]
[1731830672213,1.53131918,90523.0,90522.0,3.50576591]
[1731830672423,1.63002944,90523.0,90522.0,3.48367191]
[1731830672644,1.52096689,90523.0,90522.0,3.39529591]
[1731830673289,1.60523894,90523.0,90522.0,3.39529591]
[1731830673513,1.51896689,90523.0,90522.0,3.28482591]
[1731830673746,1.52096689,90523.0,90522.0,3.28482591]
[1731830674207,1.52096689,90523.0,90522.0,3.28009071]
[1731830674442,1.52096689,90523.0,90522.0,3.23590271]
[1731830674678,1.52096689,90523.0,90522.0,3.16962071]
[1731830675591,1.81879685,90523.0,90522.0,3.05915071]
[1731830676081,1.9278594,90523.0,90522.0,3.05915071]
[1731830676553,1.60523894,90523.0,90522.0,2.87701107]
[1731830676778,1.52096689,90523.0,90522.0,2.87701107]
[1731830677010,1.51296689,90523.0,90522.0,2.87701107]
[1731830677464,1.51296689,90523.0,90522.0,2.76654107]
[1731830677729,1.42869484,90523.0,90522.0,2.76654107]
[1731830677961,1.51296689,90523.0,90522.0,2.76654107]
[1731830678429,1.51296689,90523.0,90522.0,2.67816507]
[1731830678659,1.51296689,90523.0,90522.0,2.65607107]
[1731830679410,1.51296689,90523.0,90522.0,2.58978907]
[1731830679627,1.51286945,90523.0,90522.0,2.54560107]
[1731830680489,1.51286945,90523.0,90522.0,2.43513107]
[1731830681382,1.50251968,90523.0,90522.0,2.41303707]
[1731830681601,1.89475508,90523.0,90522.0,2.32466107]
[1731830682026,1.89475508,90523.0,90522.0,2.28066107]
[1731830682251,1.59712396,90523.0,90522.0,2.28066107]
[1731830682460,1.51285191,90523.0,90522.0,2.17019107]
[1731830683446,1.51285191,90523.0,90522.0,2.08130306]
[1731830683685,1.89475508,90523.0,90522.0,2.03711506]
[1731830684103,1.88442285,90523.0,90522.0,2.03711506]
[1731830684418,1.59712102,90523.0,90522.0,1.88365894]
[1731830685416,1.59712102,90523.0,90522.0,1.81737694]
[1731830685624,1.59712102,90523.0,90522.0,1.77318894]
[1731830686236,1.58679173,90523.0,90522.0,1.77318894]
[1731830686497,1.59712023,90523.0,90522.0,1.66271894]
[1731830686703,1.58679173,90523.0,90522.0,1.66271894]
[1731830686906,1.70289173,90523.0,90522.0,1.66271894]
[1731830687125,1.58679173,90523.0,90522.0,1.66271894]
[1731830688214,1.69585428,90523.0,90522.0,1.61853094]
[1731830688429,1.58679173,90523.0,90522.0,1.57434294]
[1731830689020,1.22048893,90523.0,90522.0,1.57434294]
[1731830689235,1.58651414,90523.0,90522.0,1.57434294]
[1731830691350,1.58651414,90523.0,90522.0,1.42087294]
[1731830691561,1.58651414,90523.0,90522.0,1.33249694]
[1731830691995,1.57851414,90523.0,90522.0,1.31040294]
[1731830692403,1.57851414,90523.0,90522.0,1.19993294]
[1731830692614,1.87598225,90523.0,90522.0,1.19993294]
[1731830693074,1.57851414,90523.0,90522.0,1.19993294]
[1731830694195,1.87598225,90523.0,90522.0,1.19993294]
[1731830694610,1.57851414,90523.0,90522.0,1.19993294]
[1731830695045,1.87598225,90523.0,90522.0,1.19993294]
[1731830695252,1.57851414,90523.0,90522.0,1.19993294]
[1731830697799,1.57451414,90523.0,90522.0,1.19993294]
[1731830698011,1.68757669,90523.0,90522.0,1.19993294]
[1731830698430,1.9850448,90523.0,90522.0,1.19993294]
[1731830699097,1.68757669,90523.0,90522.0,1.19993294]
[1731830699572,1.98498624,90523.0,90522.0,1.19993294]
[1731830701375,1.68757669,90523.0,90522.0,1.19993294]
[1731830702465,1.68757669,90523.0,90522.0,0.64730107]
[1731830702677,1.57851414,90523.0,90522.0,0.64730107]
[1731830704446,1.57851414,90523.0,90522.0,0.37698742]
[1731830705708,1.57855321,90523.0,90522.0,0.37698742]
[1731830706848,1.57858716,90523.0,90522.0,0.37698742]
[1731830707016,1.57058716,90523.0,90522.0,0.37698742]
[1731830708601,1.67964971,90523.0,90522.0,0.37698742]
[1731830708801,1.57058716,90523.0,90522.0,0.37698742]
[1731830713800,1.57058716,90523.0,90522.0,0.37698742]
[1731830714283,1.57058716,90523.0,90522.0,0.37625981]
[1731830716536,1.57058716,90523.0,90522.0,0.33316885]
[1731830716537,1.48631511,90523.0,90522.0,0.33316885]
[1731830718485,1.48631511,90523.0,90522.0,0.25343885]
[1731830718721,1.48631511,90523.0,90494.0,0.0477]
[1731830718722,0.235503,90495.0,90494.0,0.0477]
[1731830718947,0.62765916,90495.0,90494.0,0.0477]
[1731830719180,0.99375739,90495.0,90494.0,0.0477]
[1731830719416,0.79693583,90495.0,90494.0,0.0477]
[1731830719878,0.79493583,90495.0,90494.0,0.0477]
[1731830720114,0.79693583,90495.0,90494.0,0.0477]
[1731830720547,0.235504,90494.0,90493.0,0.0756]
[1731830720829,0.90948863,90494.0,90493.0,0.0756]
[1731830721074,0.9103602,90494.0,90493.0,0.0756]
[1731830721999,0.70353635,90494.0,90493.0,0.0756]
[1731830724326,1.44872166,90494.0,90493.0,0.0756]
[1731830725758,1.24984649,90494.0,90493.0,0.0756]
[1731830725991,1.29502414,90494.0,90493.0,0.0756]
[1731830728481,1.32952368,90494.0,90493.0,0.0756]
[1731830730863,1.32752368,90494.0,90493.0,0.0756]
[1731830731490,1.32952368,90494.0,90493.0,0.0756]
[1731830732793,1.32952368,90494.0,90493.0,0.0773122]
[1731830733979,1.50521402,90494.0,90493.0,0.0773122]
[1731830734197,1.05415857,90494.0,90493.0,0.13520952]
[1731830734408,0.9051442,90494.0,90493.0,0.13520952]
[1731830734878,0.9051442,90494.0,90493.0,0.14960475]
[1731830734879,0.76796655,90494.0,90493.0,0.14960475]
[1731830735583,0.11106255,90494.0,90493.0,0.14960475]
[1731830736014,0.11106255,90494.0,90493.0,0.2821222]
[1731830736475,0.10906255,90494.0,90493.0,0.28511146]
[1731830736726,0.10906255,90494.0,90493.0,0.28211146]
[1731830736947,0.10906255,90494.0,90493.0,0.28511146]
[1731830736948,0.10106255,90494.0,90493.0,0.28511146]
[1731830737190,0.10106255,90494.0,90493.0,0.02638401]
[1731830737395,0.10106255,90494.0,90493.0,0.14090914]
[1731830738055,0.10106255,90494.0,90493.0,0.15888734]
[1731830739394,0.10106255,90494.0,90493.0,0.14090914]
[1731830739620,0.10106255,90494.0,90493.0,0.15883742]
[1731830740121,0.10106255,90494.0,90493.0,0.14087419]
[1731830740334,0.10106255,90494.0,90493.0,0.24006805]
[1731830741015,0.10106255,90494.0,90493.0,0.24006889]
[1731830745066,0.10106255,90494.0,90493.0,0.24178169]
[1731830745276,0.10191895,90494.0,90493.0,0.24178169]
[1731830747310,0.10191895,90494.0,90493.0,0.25972535]
[1731830747549,0.0008564,90494.0,90493.0,0.26472535]
[1731830749151,0.0008564,90494.0,90493.0,0.26693525]
[1731830749394,0.0008564,90494.0,90493.0,0.26472535]
[1731830749608,0.0008564,90494.0,90493.0,0.26693507]
[1731830749819,0.0008564,90494.0,90493.0,0.23962548]
[1731830750030,0.16576417,90519.0,90508.0,0.212687]
[1731830750031,0.002,90516.0,90508.0,0.212687]
[1731830750239,0.16576417,90519.0,90508.0,0.34165519]
[1731830750240,0.27482672,90509.0,90508.0,0.34165519]
[1731830750463,0.16576417,90509.0,90508.0,0.35042322]
[1731830750675,0.002,90518.0,90517.0,0.110476]
[1731830750887,0.002,90518.0,90517.0,0.15171952]
[1731830750888,0.11106255,90518.0,90517.0,0.15171952]
[1731830751132,0.002,90522.0,90521.0,0.113471]
[1731830751378,0.11106255,90522.0,90521.0,0.15471452]
[1731830751614,0.10906255,90522.0,90521.0,0.15846331]
[1731830751839,0.10906255,90522.0,90521.0,0.1619154]
[1731830752068,0.10106255,90522.0,90521.0,0.1619154]
[1731830752277,0.10106255,90522.0,90521.0,0.15846331]
[1731830752724,0.10106255,90522.0,90521.0,0.11721979]
[1731830752951,0.10106255,90522.0,90521.0,0.15839535]
[1731830753187,0.0017122,90523.0,90522.0,0.13947]
[1731830753428,0.0017122,90523.0,90522.0,0.26823135]
[1731830753638,0.0017122,90523.0,90522.0,0.28255647]
[1731830753844,0.0017122,90523.0,90522.0,0.26823135]
[1731830754063,0.0017122,90523.0,90522.0,0.28255647]
[1731830754352,0.0017122,90523.0,90522.0,0.26823135]
[1731830755494,0.0017122,90523.0,90522.0,0.39314075]
[1731830755708,0.0017122,90523.0,90522.0,0.42738166]
[1731830755949,0.0017122,90523.0,90522.0,0.34305042]
[1731830759147,0.0017122,90523.0,90522.0,0.29848196]
[1731830759366,0.0017122,90523.0,90522.0,0.342982]
[1731830759788,0.0017122,90523.0,90522.0,0.38680408]
[1731830760212,0.0017122,90523.0,90522.0,0.47107613]
[1731830760453,0.0017122,90523.0,90522.0,0.38680408]
[1731830760692,0.0017122,90523.0,90522.0,0.47107613]
[1731830761115,0.0017122,90523.0,90522.0,0.47107609]
[1731830761374,0.0017122,90523.0,90522.0,0.44787606]
[1731830761582,0.0017122,90523.0,90522.0,0.47608381]
[1731830762114,0.0017128,90525.0,90524.0,0.28593905]
[1731830762324,0.0017128,90525.0,90524.0,0.45644677]
[1731830762549,0.0017128,90525.0,90524.0,0.53106643]
[1731830763195,0.16576417,90536.0,90535.0,0.123454]
[1731830763471,0.16576417,90536.0,90535.0,0.26716172]
[1731830763715,0.16576417,90536.0,90535.0,0.27079492]
[1731830763953,0.0017124,90544.0,90543.0,0.110444]
[1731830764413,0.0017124,90544.0,90543.0,0.11389554]
[1731830764658,0.23297495,90544.0,90543.0,0.00345154]
[1731830764867,0.34341795,90544.0,90543.0,0.00345154]
[1731830765075,0.1222,90542.0,90530.0,0.23518797]
[1731830765309,0.10906255,90541.0,90530.0,0.220918]
[1731830765516,0.10906255,90541.0,90532.0,0.220916]
[1731830766033,0.002,90539.0,90533.0,0.00345451]
[1731830766238,0.10906255,90538.0,90535.0,0.220909]
[1731830766446,0.10906255,90538.0,90537.0,0.110452]
[1731830766911,0.10106255,90538.0,90537.0,0.11391844]
[1731830767150,0.10106255,90538.0,90537.0,0.00346644]
[1731830767848,0.10306255,90538.0,90530.0,0.220921]
[1731830768091,0.002,90535.0,90532.0,0.110457]
[1731830768334,0.23126255,90534.0,90530.0,0.110459]
[1731830768570,0.23126255,90534.0,90530.0,0.110059]
[1731830768798,0.002,90532.0,90525.0,0.220933]
[1731830769031,0.002,90532.0,90531.0,0.110459]
[1731830769656,0.002,90532.0,90529.0,0.110461]
[1731830769996,0.002,90532.0,90530.0,0.11046]
[1731830770436,0.002,90532.0,90531.0,0.110459]
[1731830771256,0.002,90532.0,90525.0,0.22113325]
[1731830771489,0.1222,90534.0,90527.0,0.110464]
[1731830771490,0.002,90528.0,90527.0,0.110464]
[1731830772156,0.002,90527.0,90526.0,0.01786913]
[1731830772366,0.002,90527.0,90525.0,0.00020025]
[1731830772367,0.002,90526.0,90525.0,0.00020025]
[1731830772572,0.22152755,90526.0,90525.0,0.00020025]
[1731830773852,0.22152755,90526.0,90525.0,0.0323979]
[1731830774079,0.34992755,90526.0,90525.0,0.0323979]
[1731830774292,0.37792755,90526.0,90525.0,0.01450996]
[1731830774526,0.38292755,90526.0,90525.0,0.01451705]
[1731830775830,0.27246255,90526.0,90525.0,0.02346731]
[1731830776307,0.24446255,90526.0,90525.0,0.04471169]
[1731830777410,0.23946255,90526.0,90525.0,0.15517769]
[1731830778116,0.23946255,90526.0,90525.0,0.11400125]
[1731830778330,0.23946255,90526.0,90525.0,0.15477236]
[1731830778755,0.23746255,90526.0,90525.0,0.15477236]
[1731830780082,0.23946255,90526.0,90525.0,0.15477236]
[1731830781630,0.24031845,90526.0,90525.0,0.15477236]
[1731830782073,0.23231845,90526.0,90525.0,0.15477236]
[1731830782278,0.23231845,90526.0,90525.0,0.13704441]
[1731830784375,0.23231845,90526.0,90525.0,0.11400125]
[1731830784823,0.0008559,90526.0,90525.0,0.13641344]
[1731830785032,0.0008559,90526.0,90525.0,0.13862253]
[1731830785509,0.0008559,90526.0,90525.0,0.13641344]
[1731830787025,0.0008559,90526.0,90525.0,0.08427205]
[1731830787262,0.0008559,90526.0,90525.0,0.19790434]
[1731830788561,0.0008559,90526.0,90525.0,0.11363229]
[1731830791427,0.0008559,90526.0,90525.0,0.19790434]
[1731830793959,0.0008559,90526.0,90525.0,0.19961594]
[1731830796998,0.0504,90528.0,90525.0,0.19961594]
[1731830796999,0.0412559,90528.0,90527.0,0.110464]
[1731830797230,0.0412559,90528.0,90527.0,0.12467217]
[1731830797459,0.0412559,90528.0,90527.0,0.1278323]
[1731830797695,0.0008558,90530.0,90529.0,0.110461]
[1731830797911,0.0008558,90530.0,90529.0,0.12466917]
[1731830798139,0.0008558,90530.0,90529.0,0.12783028]
[1731830798379,0.0008558,90530.0,90529.0,0.11362211]
[1731830798868,0.0008558,90530.0,90529.0,0.12783096]
[1731830799101,0.0008558,90530.0,90529.0,0.13666295]
[1731830801650,0.0008558,90530.0,90529.0,0.11362211]
[1731830801930,0.0008558,90530.0,90529.0,0.13658901]
[1731830804282,0.0028558,90530.0,90529.0,0.13658901]
[1731830805159,0.0028558,90530.0,90529.0,0.13659645]
[1731830806012,0.0783558,90530.0,90529.0,0.13659645]
[1731830806877,0.0783558,90530.0,90529.0,0.13660929]
[1731830807099,0.0783558,90530.0,90529.0,0.1366093]
[1731830808749,0.0783558,90530.0,90529.0,0.13661258]
[1731830808978,0.0783558,90530.0,90529.0,0.12246405]
[1731830809208,0.0783558,90530.0,90529.0,0.14545464]